{"text_format":"1","workbook":"xlsx","n_sheets":1,"sheets":["第5・7号"],"not_rendered":{"charts":0,"images":0,"macros":0,"external_links":0,"defined_names":0,"comments":0,"pivot_tables":0},"unopened":[],"bounds":{"document_bytes":16777216,"sheet_cells":100000,"rows_first":2000,"rows_last":500,"rows_between":2000,"halvings":0,"cell_chars":16384,"cell_head_chars":4096},"cells_cut":0,"cells_raw":0,"read":"whole","date_system":"1900"}

{"sheet":"第5・7号","index":0,"n_rows":70,"n_cols":25,"rows_kept":70,"cut":false,"hidden":false,"merged":[[8,21,8,23],[69,0,69,1],[69,2,69,9],[69,11,69,12],[69,13,69,20],[67,0,67,3],[67,5,67,9],[67,11,67,14],[67,16,67,20],[68,0,68,1],[68,2,68,9],[68,11,68,12],[68,13,68,20],[65,0,65,1],[65,2,65,9],[65,11,65,12],[65,13,65,20],[66,0,66,3],[66,5,66,7],[66,8,66,9],[66,11,66,14],[66,16,66,18],[66,19,66,20],[63,0,63,1],[63,2,63,9],[63,11,63,12],[63,13,63,20],[64,0,64,1],[64,2,64,9],[64,11,64,12],[64,13,64,20],[5,0,5,2],[5,3,5,5],[5,6,5,9],[6,0,6,2],[6,3,6,5],[6,6,6,9],[7,0,7,2],[7,3,7,5],[7,6,7,9],[9,0,9,2],[9,3,9,5],[9,6,9,9],[8,0,8,2],[8,3,8,5],[8,6,8,9],[10,0,10,2],[10,3,10,5],[10,6,10,9],[11,0,11,2],[11,3,11,5],[11,6,11,9],[12,0,12,2],[12,3,12,5],[12,6,12,9],[13,0,13,2],[13,3,13,5],[13,6,13,9],[40,0,40,4],[40,6,40,9],[41,0,41,4],[41,6,41,9],[42,0,42,4],[42,6,42,9],[45,0,45,1],[45,2,45,9],[46,0,46,1],[46,2,46,9],[41,11,41,15],[41,17,41,20],[42,11,42,15],[42,17,42,20],[12,11,12,13],[12,14,12,16],[57,0,57,1],[57,2,57,9],[58,0,58,3],[58,5,58,7],[58,8,58,9],[50,0,50,3],[50,5,50,9],[51,0,51,3],[51,5,51,7],[51,8,51,9],[55,0,55,1],[55,2,55,9],[56,0,56,1],[56,2,56,9],[47,0,47,3],[47,5,47,7],[47,8,47,9],[48,0,48,1],[7,11,7,13],[7,14,7,16],[7,17,7,20],[9,11,9,13],[9,14,9,16],[9,17,9,20],[8,11,8,13],[8,14,8,16],[8,17,8,20],[61,0,61,1],[61,2,61,9],[59,0,59,3],[59,5,59,9],[60,0,60,1],[60,2,60,9],[48,2,48,3],[48,4,48,5],[48,6,48,7],[48,8,48,9],[49,0,49,1],[49,2,49,9],[50,16,50,20],[51,11,51,14],[51,16,51,18],[51,19,51,20],[55,11,55,12],[55,13,55,20],[45,11,45,12],[45,13,45,20],[46,11,46,12],[46,13,46,20],[47,11,47,14],[47,16,47,18],[47,19,47,20],[48,11,48,12],[48,13,48,14],[48,15,48,16],[48,17,48,18],[48,19,48,20],[60,11,60,12],[60,13,60,20],[61,11,61,12],[61,13,61,20],[41,21,41,22],[42,21,42,22],[5,21,5,23],[6,21,6,23],[7,21,7,23],[9,21,9,23],[10,21,10,23],[11,21,11,23],[56,11,56,12],[56,13,56,20],[57,11,57,12],[57,13,57,20],[58,11,58,14],[58,16,58,18],[58,19,58,20],[59,11,59,14],[59,16,59,20],[49,11,49,12],[49,13,49,20],[50,11,50,14],[0,2,0,3],[0,5,0,6],[0,8,0,9],[12,21,12,23],[13,21,13,23],[40,21,40,22],[40,11,40,15],[40,17,40,20],[10,11,10,13],[10,14,10,16],[12,17,12,20],[13,11,13,13],[13,14,13,16],[13,17,13,20],[5,11,5,13],[5,14,5,16],[5,17,5,20],[6,11,6,13],[6,14,6,16],[6,17,6,20],[10,17,10,20],[11,11,11,13],[11,14,11,16],[11,17,11,20]]}
[null,null,null,null,null,null,null,"事業実施主体名："]
["有","無"]
[]
["【事業収支の内訳】"]
["変更前（当初申請時、○月○日変更承認時）",null,null,null,null,null,null,null,null,null,null,"変更後（○月○日変更申請時）、決算（実績報告時）",null,null,null,null,null,null,null,null,null,"増減",null,null,"変更理由"]
["収入内容",null,null,"金額（円）",null,null,"備考",null,null,null,null,"収入内容",null,null,"金額（円）",null,null,"備考",null,null,null,"金額（円）",null,null,"その他"]
["コミュニティ助成金（＝Ａ－Ｂ）",null,null,null,null,null,null,null,null,null,null,"コミュニティ助成金（＝Ａ－Ｂ）",null,null,null,null,null,null,null,null,null,{"$f":"O7-D7","v":0}]
[null,null,null,null,null,null,null,null,null,null,null,null,null,null,null,null,null,null,null,null,null,0]
[null,null,null,null,null,null,null,null,null,null,null,null,null,null,null,null,null,null,null,null,null,{"$f":"O9-D9","v":0}]
[null,null,null,null,null,null,null,null,null,null,null,null,null,null,null,null,null,null,null,null,null,0]
[null,null,null,null,null,null,null,null,null,null,null,null,null,null,null,null,null,null,null,null,null,0]
[null,null,null,null,null,null,null,null,null,null,null,null,null,null,null,null,null,null,null,null,null,0]
[null,null,null,null,null,null,null,null,null,null,null,null,null,null,null,null,null,null,null,null,null,0]
["事業収入合計（＝事業費総額Ａ）",null,null,{"$f":"SUM(D7:F13)","v":0},null,null,null,null,null,null,null,"事業収入合計（＝事業費総額Ａ）",null,null,{"$f":"SUM(O7:Q13)","v":0},null,null,null,null,null,null,0]
["見積書\n番号","備品・設備名、\n費用区分","規格・仕様・\n形式・メーカー、\n費用項目等","数量","単価（円）","金額（円）","対象外\n経費","整備目的・用途","広報\n表示","保管場所\n設置場所\n名称",null,"請求書・納品書\n番号","備品・設備名、\n費用区分","規格・仕様・\n形式・メーカー、\n費用項目等","数量","単価（円）","金額（円）","対象外\n経費","整備目的・用途","広報\n表示","保管場所\n設置場所\n名称","数量","単価（円）","金額（円）"]
[null,null,null,null,null,null,null,null,null,null,null,null,null,null,null,null,null,null,null,null,null,{"$f":"O16-D16","v":0},{"$f":"P16-E16","v":0},{"$f":"Q16-F16","v":0}]
[null,null,null,null,null,null,null,null,null,null,null,null,null,null,null,null,null,null,null,null,null,{"$f":"O17-D17","v":0},{"$f":"P17-E17","v":0},{"$f":"Q17-F17","v":0}]
[null,null,null,null,null,null,null,null,null,null,null,null,null,null,null,null,null,null,null,null,null,0,0,0]
[null,null,null,null,null,null,null,null,null,null,null,null,null,null,null,null,null,null,null,null,null,{"$f":"O19-D19","v":0},{"$f":"P19-E19","v":0},{"$f":"Q19-F19","v":0}]
[null,null,null,null,null,null,null,null,null,null,null,null,null,null,null,null,null,null,null,null,null,0,0,0]
[null,null,null,null,null,null,null,null,null,null,null,null,null,null,null,null,null,null,null,null,null,0,0,0]
[null,null,null,null,null,null,null,null,null,null,null,null,null,null,null,null,null,null,null,null,null,0,0,0]
[null,null,null,null,null,null,null,null,null,null,null,null,null,null,null,null,null,null,null,null,null,0,0,0]
[null,null,null,null,null,null,null,null,null,null,null,null,null,null,null,null,null,null,null,null,null,0,0,0]
[null,null,null,null,null,null,null,null,null,null,null,null,null,null,null,null,null,null,null,null,null,0,0,0]
[null,null,null,null,null,null,null,null,null,null,null,null,null,null,null,null,null,null,null,null,null,0,0,0]
[null,null,null,null,null,null,null,null,null,null,null,null,null,null,null,null,null,null,null,null,null,0,0,0]
[null,null,null,null,null,null,null,null,null,null,null,null,null,null,null,null,null,null,null,null,null,0,0,0]
[null,null,null,null,null,null,null,null,null,null,null,null,null,null,null,null,null,null,null,null,null,0,0,0]
[null,null,null,null,null,null,null,null,null,null,null,null,null,null,null,null,null,null,null,null,null,0,0,0]
[null,null,null,null,null,null,null,null,null,null,null,null,null,null,null,null,null,null,null,null,null,0,0,0]
[null,null,null,null,null,null,null,null,null,null,null,null,null,null,null,null,null,null,null,null,null,0,0,0]
[null,null,null,null,null,null,null,null,null,null,null,null,null,null,null,null,null,null,null,null,null,0,0,0]
[null,null,null,null,null,null,null,null,null,null,null,null,null,null,null,null,null,null,null,null,null,0,0,0]
[null,null,null,null,null,null,null,null,null,null,null,null,null,null,null,null,null,null,null,null,null,0,0,0]
[null,null,null,null,null,null,null,null,null,null,null,null,null,null,null,null,null,null,null,null,null,0,0,0]
[null,null,null,null,null,null,null,null,null,null,null,null,null,null,null,null,null,null,null,null,null,0,0,0]
[null,null,null,null,null,null,null,null,null,null,null,null,null,null,null,null,null,null,null,null,null,0,0,0]
[null,null,null,null,null,null,null,null,null,null,null,null,null,null,null,null,null,null,null,null,null,0,0,0]
[null,null,null,null,null,null,null,null,null,null,null,null,null,null,null,null,null,null,null,null,null,0,0,0]
["対象経費合計①",null,null,null,null,{"$f":"SUMIF(G16:G40,\"\",F16:F40)","v":0},null,null,null,null,null,"対象経費合計①",null,null,null,null,{"$f":"SUMIF(R16:R40,\"\",Q16:Q40)","v":0},null,null,null,null,null,null,{"$f":"Q41-F41","v":0}]
["対象外経費合計②",null,null,null,null,{"$f":"SUMIF(G16:G40,\"○\",F16:F40)","v":0},null,null,null,null,null,"対象外経費合計②",null,null,null,null,{"$f":"SUMIF(R16:R40,\"○\",Q16:Q40)","v":0},null,null,null,null,null,null,{"$f":"Q42-F42","v":0}]
["事業支出合計（①＋②＝事業費総額Ａ）",null,null,null,null,{"$f":"F41+F42","v":0},null,null,null,null,null,"事業支出合計（①＋②＝事業費総額Ａ）",null,null,null,null,{"$f":"Q41+Q42","v":0},null,null,null,null,null,null,{"$f":"Q43-F43","v":0}]
[]
["【コミュニティセンターの建設についての説明】",null,null,null,null,null,null,null,null,null,null,"【コミュニティセンターの建設についての説明】"]
["所在地（地番）",null,null,null,null,null,null,null,null,null,null,"所在地（地番）"]
["土地の所有者",null,null,null,null,null,null,null,null,null,null,"土地の所有者"]
["使用承諾の有無（無の場合の承諾予定日）",null,null,null,null,null,null,null,null,null,null,"使用承諾の有無（無の場合の承諾予定日）"]
["土地面積",null,null,null,"建物面積（計画）",null,null,null,null,null,null,"土地面積",null,null,null,"建物面積（計画）"]
["建物の構造",null,null,null,null,null,null,null,null,null,null,"建物の構造"]
["権利部（乙区）の有無（有の場合のその内容）",null,null,null,null,null,null,null,null,null,null,"権利部（乙区）の有無（有の場合のその内容）"]
["地縁団体認可の有無（無の場合の認可予定日）",null,null,null,null,null,null,null,null,null,null,"地縁団体認可の有無（無の場合の認可予定日）"]
[]
[]
["【備品・設備の保管場所・設置場所についての説明】",null,null,null,null,null,null,null,null,null,null,"【備品・設備の保管場所・設置場所についての説明】"]
["保管場所・設置場所名称",null,null,null,null,null,null,null,null,null,null,"保管場所・設置場所名称"]
["所在地（地番）",null,null,null,null,null,null,null,null,null,null,"所在地（地番）"]
["土地または建物の所有者",null,null,null,null,null,null,null,null,null,null,"土地または建物の所有者"]
["使用承諾の有無（無の場合の承諾予定日）",null,null,null,null,null,null,null,null,null,null,"使用承諾の有無（無の場合の承諾予定日）"]
["権利部（乙区）の有無（有の場合のその内容）",null,null,null,null,null,null,null,null,null,null,"権利部（乙区）の有無（有の場合のその内容）"]
["保管・設置場所の説明",null,null,null,null,null,null,null,null,null,null,"保管・設置場所の説明"]
["管理方法",null,null,null,null,null,null,null,null,null,null,"管理方法"]
[]
["保管場所・設置場所名称",null,null,null,null,null,null,null,null,null,null,"保管場所・設置場所名称"]
["所在地（地番）",null,null,null,null,null,null,null,null,null,null,"所在地（地番）"]
["土地または建物の所有者",null,null,null,null,null,null,null,null,null,null,"土地または建物の所有者"]
["使用承諾の有無（無の場合の承諾予定日）",null,null,null,null,null,null,null,null,null,null,"使用承諾の有無（無の場合の承諾予定日）"]
["権利部（乙区）の有無（有の場合のその内容）",null,null,null,null,null,null,null,null,null,null,"権利部（乙区）の有無（有の場合のその内容）"]
["保管・設置場所の説明",null,null,null,null,null,null,null,null,null,null,"保管・設置場所の説明"]
["管理方法",null,null,null,null,null,null,null,null,null,null,"管理方法"]